bitfinex/quotes_SOLUSD_20250520
["timestamp","ask_amount","ask_price","bid_price","bid_amount"]
[1747755468785,20.93725819,167.17,167.12,18.64964886]
[1747755468987,5.98193455,167.17,167.14,18.64964886]
[1747755469195,5.98193455,167.17,167.13,8.1289]
[1747755469382,5.98193455,167.17,167.15,37.86]
[1747755473765,38.10663883,167.17,167.12,37.86]
[1747755473995,20.93677094,167.17,167.12,37.86]
[1747755474176,20.93677094,167.17,167.13,18.64964886]
[1747755474380,20.93677094,167.17,167.13,19.14964886]
[1747755474686,5.98121897,167.19,167.14,0.14216157]
[1747755475082,17.16986789,167.22,167.14,0.14216157]
[1747755476689,17.16986789,167.23,167.14,0.14216157]
[1747755477191,20.93051069,167.22,167.14,0.14216157]
[1747755477693,20.93051069,167.22,167.13,19.14964886]
[1747755478081,20.93051069,167.22,167.14,0.14216157]
[1747755478275,20.93051069,167.22,167.15,18.64964886]
[1747755478597,17.16986789,167.2,167.16,37.8]
[1747755479191,5.98157674,167.18,167.16,37.8]
[1747755481072,50.82256203,167.25,167.17,18.64964886]
[1747755481496,67.99242992,167.25,167.17,18.64964886]
[1747755481677,17.16986789,167.23,167.17,56.44964886]
[1747755482099,17.16986789,167.24,167.17,56.44964886]
[1747755482294,50.82256203,167.25,167.17,56.44964886]
[1747755482502,17.16986789,167.23,167.17,56.44964886]
[1747755482998,5.97907324,167.25,167.17,62.49964886]
[1747755483202,14.94544978,167.28,167.2,0.14216157]
[1747755483385,32.11531767,167.28,167.18,0.14216157]
[1747755483590,32.11531767,167.28,167.18,18.79181043]
[1747755483790,32.11531767,167.28,167.19,0.14216157]
[1747755484374,32.11531767,167.28,167.21,18.64964886]
[1747755484704,17.16986789,167.27,167.21,18.64964886]
[1747755484999,32.11531767,167.28,167.21,18.64964886]
[1747755485200,38.09331862,167.28,167.19,18.64964886]
[1747755486192,20.92345073,167.28,167.19,18.64964886]
[1747755486733,20.92345073,167.28,167.2,0.14216157]
[1747755487010,38.09331862,167.28,167.2,0.14216157]
[1747755487220,20.92345073,167.28,167.2,0.14216157]
[1747755487387,38.09331862,167.28,167.2,0.14216157]
[1747755487712,20.92345073,167.28,167.2,0.14216157]
[1747755488007,5.97800095,167.28,167.23,18.79181043]
[1747755488303,20.92300334,167.28,167.2,19.86]
[1747755488504,38.09287123,167.28,167.2,19.86]
[1747755488686,20.92300334,167.28,167.2,19.86]
[1747755488883,38.09287123,167.28,167.2,19.86]
[1747755489302,67.98287601,167.28,167.2,19.86]
[1747755489709,17.16986789,167.25,167.18,243.6]
[1747755490110,52.34370812,167.28,167.19,18.64964886]
[1747755490320,69.51357601,167.28,167.19,19.14964886]
[1747755490708,17.16986789,167.26,167.19,19.14964886]
[1747755491190,69.51357601,167.28,167.19,19.14964886]
[1747755492513,52.34370812,167.28,167.19,19.14964886]
[1747755493100,69.51357601,167.28,167.19,19.14964886]
[1747755494086,17.16986789,167.27,167.19,19.14964886]
[1747755494491,17.16986789,167.25,167.19,0.5]
[1747755494689,17.16986789,167.24,167.19,0.5]
[1747755494899,17.16986789,167.24,167.18,223.74]
[1747755495106,17.16986789,167.25,167.17,37.76]
[1747755495303,217.1337129,167.28,167.17,37.76]
[1747755495304,17.16986789,167.26,167.17,37.76]
[1747755495508,217.1337129,167.28,167.17,37.76]
[1747755495714,17.16986789,167.26,167.17,37.76]
[1747755496015,20.92675634,167.25,167.17,37.76]
[1747755496214,20.92675634,167.25,167.18,18.64964886]
[1747755496791,20.92675634,167.25,167.19,0.5]
[1747755497212,5.97907324,167.25,167.2,25.15794886]
[1747755497510,5.97907324,167.25,167.22,18.64964886]
[1747755497691,20.92675634,167.25,167.2,18.64964886]
[1747755497897,38.09662423,167.25,167.19,19.84]
[1747755498411,17.16986789,167.24,167.19,19.84]
[1747755498827,38.09662423,167.25,167.19,19.84]
[1747755499030,17.16986789,167.24,167.19,19.84]
[1747755499638,17.16986789,167.2,167.09,19.84]
[1747755499813,7.7005,167.23,167.09,19.84]
[1747755500122,17.16986789,167.18,167.09,19.84]
[1747755500324,20.93677094,167.17,167.1,18.64964886]
[1747755500699,5.98193455,167.17,167.11,0.14216157]
[1747755501294,5.98121897,167.19,167.11,0.14216157]
[1747755501713,5.98121897,167.19,167.13,18.64964886]
[1747755501912,5.98121897,167.19,167.14,17.92]
[1747755502123,5.98121897,167.19,167.16,18.64964886]
[1747755502429,20.92994322,167.23,167.16,18.64964886]
[1747755503011,17.16986789,167.17,167.02,14.90318702]
[1747755503327,6.3022,167.19,167.04,19.86]
[1747755503328,17.16986789,167.14,167.04,19.86]
[1747755503528,17.16986789,167.14,167.05,18.64964886]
[1747755503711,6.3022,167.19,167.05,18.64964886]
[1747755503911,27.48537233,167.17,167.06,0.14216157]
[1747755504308,20.93802344,167.16,167.06,0.14216157]
[1747755504915,20.93802344,167.16,167.08,18.64964886]
[1747755505111,27.48537233,167.15,167.07,37.78]
[1747755505318,48.42339577,167.16,167.08,18.64964886]
[1747755505516,20.93802344,167.16,167.08,18.64964886]
[1747755506514,14.95573103,167.16,167.08,18.64964886]
[1747755507120,14.95573103,167.16,167.09,0.5]
[1747755507723,14.95573103,167.16,167.1,18.64964886]
[1747755508129,5.98193455,167.17,167.1,18.64964886]
[1747755508719,20.93484982,167.19,167.1,18.64964886]
[1747755509438,5.98121897,167.19,167.12,18.64964886]
[1747755509743,5.98121897,167.19,167.13,20.1]
[1747755510318,27.48537233,167.24,167.14,36.58964886]
[1747755510534,50.82263673,167.25,167.14,36.58964886]
[1747755510741,50.82263673,167.25,167.11,5.94966314]
[1747755511043,27.48537233,167.21,167.12,56.68964886]
[1747755511442,27.48537233,167.18,167.1,6.4044]
[1747755511739,27.48537233,167.17,167.12,20.1]
[1747755512536,27.48537233,167.14,167.07,1.6448]
[1747755512740,5.98336624,167.13,167.07,18.64964886]
[1747755513747,5.98336624,167.13,167.07,22.83945942]
[1747755514043,14.95547644,167.17,167.08,0.14216157]
[1747755514261,5.98229241,167.16,167.08,0.14216157]
[1747755515042,14.95268,167.2,167.09,4.18935902]
[1747755515430,42.43805233,167.2,167.09,4.18935902]
[1747755515829,42.43805233,167.2,167.08,0.14216157]
[1747755516355,27.48537233,167.19,167.08,0.14216157]
[1747755516647,14.95268,167.2,167.07,18.64964886]
[1747755516858,27.48537233,167.18,167.07,18.64964886]
[1747755517027,20.93677094,167.17,167.07,18.64964886]
[1747755519548,48.42214327,167.17,167.07,18.64964886]
[1747755519755,78.33181605,167.17,167.07,18.64964886]
[1747755519931,27.48537233,167.15,167.07,18.64964886]
[1747755520367,20.94052889,167.14,167.07,18.64964886]
[1747755522240,14.95752064,167.14,167.07,18.64964886]
[1747755522559,5.98265031,167.15,167.07,22.83950039]
[1747755522726,5.98265031,167.15,167.09,18.79181043]
[1747755522921,134.9,167.2,167.09,18.79181043]
[1747755523123,5.98086124,167.2,167.09,100.39181043]
[1747755523323,33.46623357,167.2,167.09,100.39181043]
[1747755523550,5.98086124,167.2,167.09,100.39181043]
[1747755523751,33.46623357,167.2,167.09,100.39181043]
[1747755523940,14.95304743,167.19,167.09,100.39181043]
[1747755524137,20.9342664,167.19,167.09,104.58104465]
[1747755525537,14.95304743,167.19,167.09,104.58104465]
[1747755526046,14.95304743,167.19,167.09,100.39181043]
[1747755526652,14.95304743,167.19,167.09,104.58113692]
[1747755527652,20.9342664,167.19,167.09,104.58113692]
[1747755527849,20.9342664,167.19,167.09,100.24964886]
[1747755528055,27.48537233,167.17,167.1,17.94]
[1747755528251,27.48537233,167.17,167.09,18.64964886]
[1747755528442,27.48537233,167.17,167.09,17.94]
[1747755528638,27.48537233,167.16,167.07,18.64964886]
[1747755528849,50.84036126,167.19,167.08,17.94]
[1747755529063,27.48537233,167.16,167.08,17.94]
[1747755529640,20.93927609,167.15,167.08,17.94]
[1747755531560,78.33789999,167.15,167.07,18.64964886]
[1747755531772,78.33789999,167.15,167.07,36.58964886]
[1747755532264,50.85252766,167.15,167.07,18.64964886]
[1747755532442,50.85252766,167.15,167.07,36.58964886]
[1747755532642,78.33789999,167.15,167.07,36.58964886]
[1747755533068,20.93927609,167.15,167.07,36.58964886]
[1747755533656,14.95662578,167.15,167.07,36.58964886]
[1747755534571,14.95662578,167.15,167.07,40.77944367]
[1747755534870,5.98229241,167.16,167.08,0.14216157]
[1747755535957,14.95470714,167.18,167.09,18.64964886]
[1747755536952,78.32953992,167.18,167.07,17.94]
[1747755537158,27.48537233,167.16,167.08,18.64964886]
[1747755537354,50.84416759,167.18,167.07,56.70964886]
[1747755537556,27.48537233,167.15,167.07,56.70964886]
[1747755537756,50.84416759,167.18,167.07,56.70964886]
[1747755537980,27.48537233,167.16,167.07,56.70964886]
[1747755538166,78.32953992,167.18,167.07,56.70964886]
[1747755538359,50.84416759,167.18,167.07,56.70964886]
[1747755538557,78.32953992,167.18,167.07,56.70964886]
[1747755539582,27.48537233,167.17,167.07,56.70964886]
[1747755540674,27.48537233,167.17,167.07,60.899489]
[1747755540878,78.32953992,167.18,167.07,22.839489]
[1747755541183,20.93802344,167.16,167.08,38.3]
[1747755541682,20.93802344,167.16,167.09,18.64964886]
[1747755542657,20.93802344,167.16,167.08,38.3]
[1747755543262,35.25077233,167.15,167.06,18.64964886]
[1747755543462,27.48537233,167.14,167.06,18.64964886]
[1747755543763,7.7654,167.15,167.06,18.64964886]
[1747755543964,17.17617503,167.14,167.05,36.58964886]
[1747755544277,17.17617503,167.12,167.04,20.36]
[1747755544480,17.17617503,167.12,167.05,17.94]
[1747755544773,17.17617503,167.13,167.04,20.36]
[1747755544988,7.7654,167.15,167.05,18.64964886]
[1747755545193,20.94052889,167.14,167.05,18.64964886]
[1747755545689,48.41997467,167.14,167.05,18.64964886]
[1747755545867,27.47944578,167.13,167.04,38.3]
[1747755546071,27.47944578,167.11,167.04,20.36]
[1747755546390,27.47944578,167.11,167.04,38.3]
[1747755546791,27.47944578,167.1,167.04,20.36]
[1747755547174,20.94679513,167.09,167.04,20.36]
[1747755549200,14.96199652,167.09,167.04,20.36]
[1747755550893,42.4414423,167.09,167.04,20.36]
[1747755551282,48.42624091,167.09,167.04,20.36]
[1747755551475,27.47944578,167.07,167.04,20.36]
[1747755552072,27.47944578,167.08,167.04,20.36]
[1747755552480,27.47944578,167.07,167.01,17.94]
[1747755552796,27.47944578,167.04,166.96,27.22671628]
[1747755553098,27.47944578,167.04,166.97,36.58964886]
[1747755553298,20.95431958,167.03,166.97,36.58964886]
[1747755554105,20.95431958,167.03,166.97,18.64964886]
[1747755554405,20.95431958,167.03,166.97,36.58964886]
[1747755554607,5.98694845,167.03,166.97,36.58964886]
[1747755555481,14.9666802,167.04,166.97,36.58964886]
[1747755557574,5.98659003,167.04,166.97,36.58964886]
[1747755557776,14.96447866,167.07,166.98,0.14216157]
[1747755557996,20.94617545,167.1,167.0,18.64964886]
[1747755558197,48.42562123,167.1,167.0,18.64964886]
[1747755558397,20.94617545,167.1,167.0,18.64964886]
[1747755558597,20.94617545,167.1,167.01,0.14216157]
[1747755558802,48.42562123,167.1,167.03,18.64964886]
[1747755559098,48.42562123,167.1,167.03,36.58964886]
[1747755559295,27.47944578,167.09,167.03,17.94]
[1747755559686,20.94804883,167.08,167.03,17.94]
[1747755560005,5.98444045,167.1,167.04,18.64964886]
[1747755561302,20.94127723,167.14,167.04,23.43891396]
[1747755561501,20.94127723,167.14,167.04,18.64964886]
[1747755561502,48.42072301,167.14,167.04,18.64964886]
[1747755561800,20.94127723,167.14,167.04,23.43882835]
[1747755562105,48.42072301,167.14,167.04,23.43882835]
[1747755562298,20.94127723,167.14,167.05,0.14216157]
[1747755562879,14.95826898,167.14,167.05,0.14216157]
[1747755563377,14.95826898,167.14,167.06,18.64964886]
[1747755563578,42.43771476,167.14,167.04,0.14216157]
[1747755563780,27.47944578,167.13,167.04,18.64964886]
[1747755563979,27.47944578,167.1,167.04,36.58964886]
[1747755564190,27.47944578,167.09,167.03,17.94]
[1747755564511,27.47944578,167.07,166.99,8.1428]
[1747755564802,27.47944578,167.07,167.01,17.94]
[1747755565004,20.95055667,167.06,167.01,17.94]
[1747755565183,20.95055667,167.06,167.0,20.36]
[1747755565184,48.43000245,167.06,167.0,36.58964886]
[1747755565588,27.47944578,167.05,166.98,17.94]
[1747755565996,20.95055667,167.06,166.97,20.36]
[1747755565997,27.47944578,167.04,166.97,20.36]
[1747755566189,27.47944578,167.04,166.97,38.3]
[1747755566988,20.95431958,167.03,166.97,38.3]
[1747755568905,48.43376536,167.03,166.97,38.3]
[1747755569108,27.47944578,167.02,166.97,38.3]
[1747755569319,27.47944578,167.02,166.97,20.36]
[1747755569487,27.47944578,166.98,166.92,36.58964886]
[1747755569806,27.47944578,166.98,166.92,18.64964886]
[1747755570004,27.47944578,166.99,166.92,18.64964886]
[1747755570793,1.5382,167.02,166.92,18.64964886]
[1747755570992,27.47944578,166.99,166.92,18.64964886]
[1747755571199,20.95682892,167.01,166.92,18.64964886]
[1747755572610,20.95682892,167.01,166.93,0.14216157]
[1747755573303,14.96916352,167.01,166.93,0.14216157]
[1747755573906,42.4486093,167.01,166.94,17.94]
[1747755574094,42.4486093,167.01,166.91,0.14216157]
[1747755574489,42.4486093,167.01,166.9,18.64964886]
[1747755574490,27.47944578,167.0,166.9,18.64964886]
[1747755574895,27.47944578,166.99,166.9,18.64964886]
[1747755575211,27.47944578,167.0,166.9,18.64964886]
[1747755575714,20.95933887,166.99,166.9,18.64964886]
[1747755577616,20.95933887,166.99,166.9,22.84368439]
[1747755578812,14.97095634,166.99,166.9,22.84368439]
[1747755580023,27.47944578,167.01,166.9,22.84368439]
[1747755580398,50.89210871,167.02,166.91,0.14216157]
[1747755580698,27.47944578,167.01,166.91,0.14216157]
[1747755581510,48.43501995,167.02,166.91,0.14216157]
[1747755581721,48.43501995,167.02,166.92,18.64964886]
[1747755582425,27.47944578,167.01,166.92,18.64964886]
[1747755582729,5.98802395,167.0,166.92,18.64964886]
[1747755583431,5.98802395,167.0,166.92,22.84315646]
[1747755583611,5.98802395,167.0,166.93,0.14216157]
[1747755584530,5.98802395,167.0,166.92,100.24964886]
[1747755584531,20.95808383,167.0,166.92,100.24964886]
[1747755584710,14.97005988,167.0,166.92,100.24964886]
[1747755585223,5.9876654,167.01,166.93,0.14216157]
[1747755585725,5.9876654,167.01,166.95,0.14216157]
[1747755586807,14.96812219,167.03,166.96,18.64964886]
[1747755587217,5.98659003,167.04,166.97,0.14216157]
[1747755587423,5.98659003,167.04,166.99,0.14216157]
[1747755588402,5.98659003,167.04,166.98,18.64964886]
[1747755588620,20.95306512,167.04,166.98,18.64964886]
[1747755589320,20.95306512,167.04,166.96,7.9179]
[1747755589906,38.14873336,167.04,166.96,7.9179]
[1747755590627,20.95306512,167.04,166.96,7.9179]
[1747755592229,68.08168355,167.04,166.96,1.5792]
[1747755592529,68.08168355,167.04,166.86,8.57706742]
[1747755592530,0.14216157,166.95,166.86,8.57706742]
[1747755592824,17.19566824,166.88,166.86,8.57706742]
[1747755593011,17.19566824,166.87,166.86,8.57706742]
[1747755593416,23.18835715,166.87,166.86,8.57706742]
[1747755593611,23.18835715,166.87,166.76,18.79181043]
[1747755593818,33.57035903,166.87,166.75,7.5338]
[1747755594229,33.57035903,166.87,166.76,18.64964886]
[1747755594230,48.55208132,166.87,166.76,18.64964886]
[1747755594407,48.55208132,166.87,166.75,7.5338]
[1747755594731,78.51552591,166.87,166.76,18.64964886]
[1747755595507,27.57767012,166.86,166.76,18.64964886]
[1747755595913,27.57767012,166.85,166.76,18.64964886]
[1747755596730,20.97818268,166.84,166.76,18.64964886]
[1747755596935,27.57767012,166.82,166.71,18.64964886]
[1747755597115,27.57767012,166.81,166.71,18.64964886]
[1747755597316,27.57767012,166.8,166.71,18.64964886]
[1747755597518,27.57767012,166.8,166.72,0.14216157]
[1747755597829,27.57767012,166.8,166.71,18.64964886]
[1747755598022,27.57767012,166.81,166.71,18.64964886]
[1747755598422,27.57767012,166.8,166.71,18.64964886]
[1747755598620,27.57767012,166.79,166.71,18.64964886]
[1747755598819,27.57767012,166.77,166.7,18.64964886]
[1747755599235,27.57767012,166.76,166.7,18.64964886]
[1747755599739,50.95312311,166.82,166.7,18.64964886]
[1747755599740,27.57767012,166.77,166.7,18.64964886]
[1747755600110,50.95312311,166.82,166.7,18.64964886]
[1747755600317,20.98069775,166.82,166.7,18.64964886]
[1747755600529,20.98069775,166.82,166.71,6.60664879]
[1747755600831,29.96883241,166.84,166.73,22.98999891]
[1747755601044,27.57767012,166.81,166.73,0.14216157]
[1747755601334,27.57767012,166.78,166.7,18.64964886]
[1747755601515,27.57767012,166.76,166.7,18.64964886]
[1747755601839,27.57767012,166.79,166.7,18.64964886]
[1747755602351,27.57767012,166.77,166.7,18.64964886]
[1747755602918,5.99664188,166.76,166.7,18.64964886]
[1747755604023,5.99664188,166.76,166.71,0.14216157]
[1747755605119,20.98368837,166.8,166.71,0.14216157]
[1747755605314,5.99520383,166.8,166.73,0.14216157]
[1747755606339,20.97993827,166.83,166.73,0.14216157]
[1747755606624,20.97993827,166.83,166.74,18.64964886]
[1747755607037,48.55760839,166.83,166.74,18.64964886]
[1747755608121,20.97993827,166.83,166.74,18.64964886]
[1747755608316,14.98581252,166.83,166.75,0.14216157]
[1747755608525,134.9,166.87,166.77,0.14216157]
[1747755608526,5.99376648,166.84,166.77,0.14216157]
[1747755608722,5.99376648,166.84,166.78,18.64964886]
[1747755609930,5.99268891,166.87,166.78,18.64964886]
[1747755610340,27.57767012,166.91,166.8,18.64964886]
[1747755610643,20.96830534,166.92,166.8,18.64964886]
[1747755611053,48.54597546,166.92,166.8,18.64964886]
[1747755611250,27.57767012,166.9,166.81,0.14216157]
[1747755611557,5.98874116,166.98,166.84,18.64964886]
[1747755611718,27.57767012,166.97,166.85,0.14216157]
[1747755611915,27.57767012,166.95,166.85,0.14216157]
[1747755612547,20.96310493,166.96,166.85,0.14216157]
[1747755612737,27.57767012,166.95,166.85,0.14216157]
[1747755612944,27.57767012,166.91,166.83,6.5695]
[1747755613138,27.57767012,166.91,166.82,0.14216157]
[1747755613139,27.57767012,166.9,166.82,0.14216157]
[1747755613349,27.57767012,166.87,166.78,18.64964886]
[1747755613533,27.57767012,166.87,166.79,0.14216157]
[1747755613730,27.57767012,166.86,166.75,8.1684]
[1747755613931,27.57767012,166.84,166.76,18.64964886]
[1747755614248,27.57767012,166.84,166.75,8.1684]
[1747755614747,27.57767012,166.84,166.76,18.64964886]
[1747755614949,5.99412575,166.83,166.76,18.64964886]
[1747755615948,5.99412575,166.83,166.74,4.19811557]
[1747755615949,27.57767012,166.82,166.74,18.64964886]
[1747755616339,27.57767012,166.81,166.74,18.64964886]
[1747755616538,27.57767012,166.82,166.74,18.64964886]
[1747755617041,20.98195551,166.81,166.74,18.64964886]
[1747755617230,20.98195551,166.81,166.72,18.79181043]
[1747755617432,27.57767012,166.8,166.72,18.64964886]
[1747755617629,27.57767012,166.79,166.71,18.64964886]
[1747755618244,27.57767012,166.78,166.7,18.64964886]
[1747755619020,5.9962823,166.77,166.7,18.64964886]
[1747755619624,5.9962823,166.77,166.71,13.2249941]
[1747755620851,50.95006892,166.83,166.71,17.42369698]
[1747755621219,20.97944014,166.83,166.71,11.40494112]
[1747755621424,20.97944014,166.83,166.73,0.14216157]
[1747755621638,5.99412575,166.83,166.73,25.85579108]
[1747755621925,5.99412575,166.83,166.75,18.79181043]
[1747755622251,5.99412575,166.83,166.75,25.25629765]
[1747755622839,14.98481928,166.84,166.75,25.25629765]
[1747755624451,5.99340725,166.85,166.75,30.05362837]
[1747755624650,5.99340725,166.85,166.78,0.14216157]
[1747755624835,5.99340725,166.85,166.77,18.64964886]
[1747755624836,20.97692538,166.85,166.77,18.64964886]
[1747755625042,48.5545955,166.85,166.77,18.64964886]
[1747755625243,20.97692538,166.85,166.77,18.64964886]
[1747755627040,14.98351813,166.85,166.77,18.64964886]
[1747755627930,5.99304806,166.86,166.78,0.14216157]
[1747755628573,20.97566822,166.86,166.78,0.14216157]
[1747755629141,14.98262016,166.86,166.78,0.14216157]
[1747755631963,5.99268891,166.87,166.8,0.14216157]
[1747755632267,5.99268891,166.87,166.81,18.64964886]
[1747755632636,48.55208132,166.87,166.81,18.64964886]
[1747755634068,20.9744112,166.87,166.81,18.64964886]
[1747755635266,5.99197075,166.89,166.82,0.14216157]
[1747755635563,5.98981731,166.95,166.87,0.14216157]
[1747755635960,20.96379425,166.96,166.88,18.64964886]
[1747755636765,20.96379425,166.96,166.87,18.79181043]
[1747755637453,27.57767012,166.95,166.87,18.64964886]
[1747755637654,27.57767012,166.94,166.87,18.64964886]
[1747755637869,27.57767012,166.94,166.85,18.64964886]
[1747755638246,20.96379425,166.96,166.84,0.14216157]
[1747755638559,27.57767012,166.94,166.84,0.14216157]
[1747755639138,27.57767012,166.93,166.84,0.14216157]
[1747755639344,27.57767012,166.93,166.83,18.64964886]
[1747755639542,20.96379425,166.96,166.83,18.64964886]
[1747755639543,20.96938469,166.91,166.83,18.64964886]
[1747755640673,20.96938469,166.91,166.83,22.8454809]
[1747755641053,20.96938469,166.91,166.83,18.64964886]
[1747755641770,14.97813192,166.91,166.83,18.64964886]
[1747755642268,27.57767012,166.89,166.79,0.59922167]
[1747755642447,27.57767012,166.88,166.8,18.64964886]
[1747755642646,27.57767012,166.89,166.8,18.64964886]
[1747755643086,14.97813192,166.91,166.8,18.64964886]
[1747755643246,27.57767012,166.9,166.8,18.64964886]
[1747755643657,20.97189764,166.89,166.8,18.64964886]
[1747755645369,5.99197075,166.89,166.81,0.14216157]
[1747755645571,20.96938469,166.91,166.82,18.64964886]
[1747755645962,20.96938469,166.91,166.83,0.14216157]
[1747755645963,5.99125277,166.91,166.83,0.14216157]
[1747755646280,5.99125277,166.91,166.85,0.14216157]
[1747755646456,20.96938469,166.91,166.84,18.64964886]
[1747755647064,48.54705481,166.91,166.84,18.64964886]
[1747755647578,48.54705481,166.91,166.81,0.14216157]
[1747755647779,27.57767012,166.9,166.8,18.64964886]
[1747755648013,27.57767012,166.89,166.8,100.24964886]
[1747755648167,27.57767012,166.88,166.8,100.24964886]
[1747755648481,27.57767012,166.88,166.79,18.79181043]
[1747755649352,27.57767012,166.89,166.79,18.79181043]
[1747755649681,27.57767012,166.9,166.79,18.79181043]
[1747755649856,48.54956776,166.89,166.79,18.79181043]
[1747755650470,27.57767012,166.87,166.79,18.64964886]
[1747755650983,27.57767012,166.88,166.79,18.64964886]
[1747755651164,86.70572155,166.89,166.79,18.64964886]
[1747755651660,27.57767012,166.88,166.79,18.64964886]
[1747755651981,20.9744112,166.87,166.79,18.64964886]
[1747755653262,48.55208132,166.87,166.79,18.64964886]
[1747755655152,78.51552591,166.87,166.79,18.64964886]
[1747755655765,27.57767012,166.85,166.78,18.64964886]
[1747755655958,27.57767012,166.83,166.75,18.64964886]
[1747755656167,27.57767012,166.82,166.75,18.64964886]
[1747755656368,27.57767012,166.81,166.75,18.64964886]
[1747755656567,27.57767012,166.81,166.73,18.64964886]
[1747755656991,48.56088354,166.8,166.73,18.64964886]
[1747755657659,20.98321342,166.8,166.73,18.64964886]
[1747755658195,48.56088354,166.8,166.73,18.64964886]
[1747755658366,48.56088354,166.8,166.72,4.60585684]
[1747755658560,27.57767012,166.79,166.71,18.64964886]
[1747755658996,20.9857297,166.78,166.71,18.64964886]
[1747755659569,20.9857297,166.78,166.7,18.64964886]
[1747755659966,20.9857297,166.78,166.69,18.64964886]
[1747755660473,14.98980693,166.78,166.69,18.64964886]
[1747755661190,42.56747705,166.78,166.69,18.64964886]
[1747755661386,27.57767012,166.77,166.69,18.64964886]
[1747755662476,42.56747705,166.78,166.69,18.64964886]
[1747755662699,48.56339982,166.78,166.69,18.64964886]
[1747755663064,20.9857297,166.78,166.69,22.84900575]
[1747755663265,20.9857297,166.78,166.7,6.46448722]
[1747755663460,20.9857297,166.78,166.7,13.08283253]
[1747755663675,5.99592277,166.78,166.72,0.14216157]
[1747755663883,5.99592277,166.78,166.71,7.6725]
[1747755664790,20.98321342,166.8,166.71,11.87123506]
[1747755665089,20.98321342,166.8,166.71,7.6725]
[1747755665277,27.57767012,166.79,166.71,1.6128]
[1747755665478,27.57767012,166.79,166.69,22.84904889]
[1747755665676,27.57767012,166.79,166.69,18.64964886]
[1747755665871,27.57767012,166.78,166.69,18.64964886]
[1747755666067,27.57767012,166.79,166.69,18.64964886]
[1747755666484,27.57767012,166.78,166.69,18.64964886]
[1747755666766,20.98698806,166.77,166.69,18.64964886]
[1747755667691,27.57767012,166.75,166.68,18.64964886]
[1747755667865,27.57767012,166.74,166.63,8.2775]
[1747755668067,27.57767012,166.74,166.64,18.64964886]
[1747755668289,27.57767012,166.73,166.63,8.2775]
[1747755668670,20.99328214,166.72,166.64,18.64964886]
[1747755669073,50.17365226,166.72,166.62,18.64964886]
[1747755669471,27.57767012,166.71,166.6,18.64964886]
[1747755670074,22.59598214,166.72,166.61,0.14216157]
[1747755670369,20.99328214,166.72,166.63,0.14216157]
[1747755670594,20.99328214,166.72,166.64,18.64964886]
[1747755670896,14.99520153,166.72,166.64,18.64964886]
[1747755671206,14.99520153,166.72,166.65,2.20734051]
[1747755671504,27.57767012,166.71,166.65,2.20734051]
[1747755671679,27.57767012,166.71,166.61,18.64964886]
[1747755671884,27.57767012,166.71,166.6,18.79181043]
[1747755672407,27.57767012,166.71,166.61,2.20619793]
[1747755672576,14.99520153,166.72,166.61,2.20619793]
[1747755672778,27.57767012,166.71,166.61,2.20619793]
[1747755673171,78.56135533,166.72,166.62,13.72532142]
[1747755673398,78.56135533,166.72,166.62,15.93151935]
[1747755673399,50.98368521,166.72,166.62,15.93151935]
[1747755673899,78.56135533,166.72,166.62,9.31317404]
[1747755674189,27.57767012,166.71,166.63,2.20619793]
[1747755674694,78.56135533,166.72,166.63,25.75662497]
[1747755674881,50.98368521,166.72,166.63,25.75662497]
[1747755675084,78.56135533,166.72,166.63,25.75662497]
[1747755675487,27.57767012,166.71,166.63,7.10697611]
[1747755676003,27.57767012,166.71,166.6,18.64964886]
[1747755676296,27.57767012,166.71,166.6,25.75662497]
[1747755676297,20.99580082,166.7,166.6,25.75662497]
[1747755676473,20.99580082,166.7,166.62,18.64964886]
[1747755676798,20.99580082,166.7,166.63,7.10697611]
[1747755677172,5.99880023,166.7,166.64,25.26799417]
[1747755677398,5.99880023,166.7,166.66,18.64964886]
[1747755677708,5.99880023,166.7,166.66,25.75662497]
[1747755678398,14.99634122,166.71,166.62,18.64964886]
[1747755678903,14.99634122,166.71,166.61,0.14216157]
[1747755678904,5.99772086,166.73,166.64,18.79181043]
[1747755679789,5.99700149,166.75,166.65,4.20042004]
[1747755680701,20.98950523,166.75,166.66,18.64964886]
[1747755682094,20.98950523,166.75,166.68,18.64964886]
[1747755682895,5.9962823,166.77,166.68,20.19834886]
[1747755683197,5.99520383,166.8,166.69,0.14216157]
[1747755683588,5.99520383,166.8,166.71,18.64964886]
[1747755683898,48.56088354,166.8,166.71,18.64964886]
[1747755684273,48.56088354,166.8,166.71,22.84853107]
[1747755684478,20.98321342,166.8,166.71,4.19888221]
[1747755684680,48.56088354,166.8,166.71,4.19888221]
[1747755684885,48.56088354,166.8,166.7,4.19906626]
[1747755685079,48.56088354,166.8,166.69,22.99114862]
[1747755685517,48.56088354,166.8,166.7,2.19988055]
[1747755686192,48.56088354,166.8,166.7,6.39889335]
[1747755686396,20.98321342,166.8,166.71,18.64964886]
[1747755687288,20.98321342,166.8,166.71,4.19882709]